bitfinex/quotes_ETHUSD_20251110
["timestamp","ask_amount","ask_price","bid_price","bid_amount"]
[1762797494372,0.001,3549.8,3549.7,28.94612235]
[1762797494578,0.001,3549.9,3549.8,4.07677211]
[1762797494777,0.001,3549.9,3549.8,6.84100981]
[1762797495771,0.478,3549.9,3549.8,6.82360981]
[1762797495984,0.9308,3549.9,3549.8,6.82360981]
[1762797496392,0.478,3549.9,3549.8,6.82360981]
[1762797496967,0.478,3549.9,3549.8,10.70100981]
[1762797496968,0.001,3549.9,3549.8,10.70100981]
[1762797498208,0.001,3549.9,3549.8,25.20100981]
[1762797498909,0.001,3550.3,3549.9,4.07669276]
[1762797499085,0.001,3550.3,3549.9,6.85833046]
[1762797499512,0.001,3550.3,3549.9,21.47113759]
[1762797499716,0.001,3550.3,3550.2,4.07645471]
[1762797499871,0.001,3550.3,3550.2,11.56867058]
[1762797500077,0.001,3550.4,3550.3,4.07637538]
[1762797500271,0.001,3550.4,3550.3,4.11117538]
[1762797500487,0.001,3550.7,3550.6,2.81642539]
[1762797500686,0.001,3550.7,3550.6,7.70835326]
[1762797500980,0.01,3550.9,3550.7,4.07605807]
[1762797501185,0.01,3550.9,3550.7,18.59345807]
[1762797501597,0.01,3550.9,3550.7,18.70624007]
[1762797503081,0.01,3550.9,3550.7,18.68884007]
[1762797504706,0.478,3550.8,3550.7,18.68884007]
[1762797504908,0.478,3550.8,3550.7,21.43567777]
[1762797505085,0.001,3550.8,3550.7,21.43567777]
[1762797506298,0.001,3550.8,3550.7,25.29567777]
[1762797508382,0.001,3550.8,3550.7,25.31307777]
[1762797509515,0.001,3550.8,3550.7,25.29567777]
[1762797509916,0.456,3550.8,3550.7,25.29567777]
[1762797510098,0.456,3550.8,3550.7,28.91049364]
[1762797510498,0.9388,3550.8,3550.7,25.18289577]
[1762797510690,0.9388,3550.8,3550.7,22.43605807]
[1762797512763,0.9388,3550.8,3550.7,7.93605807]
[1762797514312,0.001,3550.8,3550.7,7.95345807]
[1762797514827,0.001,3550.8,3550.7,22.56624675]
[1762797515044,0.001,3550.8,3550.7,25.31308445]
[1762797516349,0.01,3550.9,3550.8,2.81626675]
[1762797516550,0.01,3550.9,3550.8,6.44848262]
[1762797516928,0.01,3550.9,3550.8,21.43128262]
[1762797518054,0.01,3550.9,3550.8,25.29128262]
[1762797518346,0.01,3550.9,3550.8,28.02072032]
[1762797527638,0.465,3550.9,3550.8,28.02072032]
[1762797530245,0.01,3550.9,3550.8,28.03812032]
[1762797530440,0.01,3550.9,3550.8,28.02072032]
[1762797533004,0.01,3550.9,3550.8,24.40590445]
[1762797533494,0.465,3550.9,3550.8,24.40590445]
[1762797533695,0.9478,3550.9,3550.8,24.40590445]
[1762797534309,0.9488,3550.9,3550.8,24.40590445]
[1762797534502,1.1337,3550.9,3550.8,24.40590445]
[1762797534705,1.1337,3550.9,3550.8,21.65906675]
[1762797534896,1.1337,3550.9,3550.8,22.91877875]
[1762797535209,1.1337,3550.9,3550.6,6.312]
[1762797535210,1.1337,3550.9,3550.6,0.002]
[1762797535412,0.494,3550.7,3550.6,0.002]
[1762797535705,0.494,3550.7,3550.3,0.002]
[1762797535909,0.494,3550.4,3550.3,0.002]
[1762797536290,0.9576,3550.4,3550.3,0.002]
[1762797537170,3.77418404,3550.4,3550.3,0.002]
[1762797537394,0.9576,3550.4,3550.3,0.002]
[1762797545986,1.51507444,3552.0,3551.5,0.464]
[1762797546205,0.001,3553.5,3551.9,2.81539457]
[1762797546206,0.7565374,3552.6,3551.9,2.81539457]
[1762797546538,1.01871654,3552.9,3552.8,4.53839337]
[1762797546539,0.01,3552.9,3552.8,4.53839337]
[1762797546898,0.01,3552.9,3552.8,5.09798592]
[1762797547101,0.01,3552.9,3552.8,9.07730362]
[1762797547301,0.01,3552.9,3552.8,10.3792465]
[1762797548242,0.001,3553.5,3553.1,4.07415572]
[1762797548432,0.001,3553.5,3553.1,8.25037342]
[1762797548604,0.001,3553.5,3553.1,8.70877342]
[1762797549018,0.001,3553.5,3553.1,5.18785572]
[1762797549220,0.001,3553.5,3553.1,6.92303788]
[1762797550110,0.001,3553.5,3553.1,7.03575537]
[1762797553351,1e-08,3554.9,3554.8,3.27709778]
[1762797553650,0.2074,3556.9,3555.0,4.47815552]
[1762797553874,0.2074,3556.9,3555.8,4.07201865]
[1762797554089,0.2074,3556.9,3555.8,4.53601865]
[1762797554269,0.671,3556.9,3555.8,4.99441865]
[1762797554657,0.671,3556.9,3556.8,2.81151596]
[1762797555940,1.0227,3556.9,3556.8,3.65623065]
[1762797556680,0.3628,3556.9,3556.8,3.65623065]
[1762797556836,0.01,3556.9,3556.8,4.91594265]
[1762797557037,0.7014,3556.9,3556.8,4.91594265]
[1762797557242,1.0229,3556.9,3556.8,4.91594265]
[1762797558457,0.7014,3556.9,3556.8,4.91594265]
[1762797559259,0.504,3556.9,3556.8,4.91594265]
[1762797559457,0.504,3556.9,3556.8,5.68869805]
[1762797560083,0.7014,3556.9,3556.8,4.42898605]
[1762797560273,1.0229,3556.9,3556.8,4.42898605]
[1762797560770,1.0229,3556.9,3556.8,3.65623065]
[1762797563007,1.44771405,3560.0,3556.8,3.65623065]
[1762797563008,0.01,3558.9,3557.8,0.464]
[1762797563286,0.01,3558.9,3556.9,0.863904]
[1762797563287,0.01,3558.9,3558.8,4.68344793]
[1762797563487,0.01,3558.9,3558.8,5.859566]
[1762797563854,0.01,3558.9,3558.8,6.323166]
[1762797564363,0.4636,3559.8,3559.7,4.06893749]
[1762797564564,0.9576,3559.8,3559.7,4.06893749]
[1762797565752,0.494,3559.8,3559.7,4.06893749]
[1762797565989,0.494,3559.8,3559.7,5.18353865]
[1762797567267,0.494,3559.8,3559.7,5.67753865]
[1762797567468,0.494,3559.8,3559.7,20.17753865]
[1762797567675,0.9717,3559.8,3559.7,17.36831316]
[1762797567869,0.9717,3559.8,3559.7,16.253712]
[1762797568385,0.9717,3559.8,3559.7,19.06293749]
[1762797568584,0.9717,3559.8,3559.7,19.02933749]
[1762797569112,0.01,3559.9,3559.8,2.80914658]
[1762797569629,0.01,3559.9,3559.8,2.82913218]
[1762797569912,0.01,3559.9,3559.8,5.31913807]
[1762797570568,0.01,3559.9,3559.8,7.47325407]
[1762797571180,0.01,3559.9,3559.8,21.97325407]
[1762797571993,0.6567,3559.9,3559.8,18.26970349]
[1762797572209,1.1344,3559.9,3559.8,0.0199856]
[1762797575071,1.1344,3559.9,3559.1,1.259712]
[1762797575269,0.3734,3559.2,3558.9,0.6567]
[1762797575508,0.483,3559.0,3558.9,0.6567]
[1762797575710,0.483,3559.0,3558.9,16.416412]
[1762797575884,0.483,3559.0,3558.9,18.74602322]
[1762797576647,0.9607,3559.0,3558.9,18.74602322]
[1762797579443,0.1737,3559.9,3559.0,1.259712]
[1762797579654,0.483,3559.0,3558.9,16.82961122]
[1762797582056,0.9607,3559.0,3558.9,16.82961122]
[1762797582608,0.483,3559.0,3558.9,20.89918019]
[1762797582813,0.483,3559.0,3558.9,18.08932322]
[1762797586174,0.9607,3559.0,3558.9,18.08932322]
[1762797587896,0.483,3559.0,3558.9,18.09132322]
[1762797589798,0.9607,3559.0,3558.9,15.761712]
[1762797591494,0.9607,3559.0,3558.9,0.002]
[1762797593049,3.77047802,3559.0,3558.9,0.002]
[1762797593786,4.08932662,3559.0,3558.9,0.002]
[1762797600397,1.2795486,3559.0,3558.9,0.002]
[1762797600596,0.9607,3559.0,3558.9,0.002]
[1762797601486,3.77047802,3559.0,3558.9,0.002]
[1762797601660,0.9607,3559.0,3558.9,0.002]
[1762797604023,0.001,3559.7,3558.9,0.4898]
[1762797604024,0.474,3559.4,3558.9,0.4898]
[1762797604180,0.001,3559.7,3558.9,0.4898]
[1762797604181,0.475,3559.7,3558.9,0.4898]
[1762797604370,0.474,3559.6,3558.9,0.4898]
[1762797604572,0.4688,3559.0,3558.9,0.002]
[1762797604771,0.9428,3559.0,3558.9,0.002]
[1762797608627,1.3208535,3559.0,3558.9,0.002]
[1762797609278,0.9428,3559.0,3558.9,0.002]
[1762797609806,3.75257802,3559.0,3558.9,0.002]
[1762797609973,0.9428,3559.0,3558.9,0.002]
[1762797610395,0.9428,3559.0,3558.5,0.002]
[1762797610396,2.81009385,3558.6,3558.5,0.002]
[1762797610644,5.25872401,3558.6,3558.1,0.002]
[1762797610795,0.4688,3558.2,3558.1,0.002]
[1762797611197,0.9428,3558.2,3558.1,0.002]
[1762797611597,0.4688,3558.2,3558.1,0.002]
[1762797611798,0.9428,3558.2,3558.1,0.002]
[1762797613635,3.75320975,3558.2,3558.1,0.002]
[1762797614704,0.9428,3558.2,3558.1,0.002]
[1762797615301,3.75320975,3558.2,3558.1,0.002]
[1762797616117,0.9428,3558.2,3558.1,0.002]
[1762797616534,5.01292175,3558.2,3558.1,0.002]
[1762797616838,10.22787384,3558.2,3558.1,0.002]
[1762797617147,9.88084576,3558.2,3558.1,0.002]
[1762797617303,9.50263571,3558.2,3558.1,0.002]
[1762797617504,10.19969436,3558.2,3558.1,0.002]
[1762797617920,0.9428,3558.2,3558.1,0.002]
[1762797618119,3.75320975,3558.2,3558.1,0.002]
[1762797618652,0.9428,3558.2,3558.1,0.002]
[1762797620160,3.75320975,3558.2,3558.1,0.002]
[1762797620649,0.9428,3558.2,3558.1,0.002]
[1762797621222,3.75320975,3558.2,3558.1,0.002]
[1762797621967,0.9428,3558.2,3558.1,0.002]
[1762797622121,3.75320975,3558.2,3558.1,0.002]
[1762797622551,0.9428,3558.2,3558.1,0.002]
[1762797623049,3.75320975,3558.2,3558.1,0.002]
[1762797623557,4.07205835,3558.2,3558.1,0.002]
[1762797623718,0.9428,3558.2,3558.1,0.002]
[1762797623921,3.75320975,3558.2,3558.1,0.002]
[1762797628376,4.1314198,3558.2,3558.1,0.002]
[1762797628542,3.75320975,3558.2,3558.1,0.002]
[1762797629579,5.44660523,3558.2,3558.1,0.002]
[1762797629780,6.17633055,3558.2,3558.1,0.002]
[1762797629949,5.73727435,3558.2,3558.1,0.002]
[1762797630483,5.82930247,3558.2,3558.1,0.002]
[1762797630778,5.01292175,3558.2,3558.1,0.002]
[1762797630981,8.6117318,3558.2,3558.1,0.002]
[1762797632578,0.4688,3558.2,3558.1,0.002]
[1762797632895,1.62499537,3559.1,3558.1,0.5716]
[1762797632896,0.1819,3559.0,3558.1,0.5716]
[1762797633058,0.55017704,3559.1,3558.4,0.4744]
[1762797633248,0.55017704,3559.1,3558.9,0.4744]
[1762797633676,0.55017704,3559.1,3558.5,0.4563]
[1762797636378,0.001,3559.7,3559.0,0.4744]
[1762797636580,0.001,3559.7,3559.4,0.4744]
[1762797636784,0.001,3559.7,3559.6,0.4744]
[1762797637751,0.001,3559.7,3559.1,0.1498]
[1762797637952,0.001,3559.7,3559.1,0.6061]
[1762797640375,0.001,3559.7,3559.1,0.1498]
[1762797641100,0.02917948,3559.7,3559.1,0.1498]
[1762797641252,0.49627948,3559.7,3559.1,0.1498]
[1762797641450,0.3188486,3559.6,3559.1,0.1498]
[1762797641653,0.4681,3559.7,3559.1,0.1498]
[1762797641874,0.001,3559.7,3559.1,0.1498]
[1762797642060,0.4681,3559.7,3559.1,0.1498]
[1762797642261,0.001,3559.7,3559.1,0.1498]
[1762797642468,0.001,3559.7,3559.1,0.6061]
[1762797647468,0.001,3559.7,3559.6,0.4744]
[1762797649169,0.001,3559.7,3559.6,0.9307]
[1762797651390,0.001,3559.7,3559.1,0.1498]
[1762797651391,0.4914,3559.7,3559.1,0.1498]
[1762797651568,0.4914,3559.7,3559.1,0.6061]
[1762797651569,0.001,3559.7,3559.1,0.6061]
[1762797651775,0.001,3559.7,3559.6,0.4744]
[1762797653812,0.001,3559.7,3559.6,0.9307]
[1762797654018,0.001,3559.7,3559.6,0.4744]
[1762797654382,0.001,3559.7,3559.6,0.9454]
[1762797656374,0.001,3559.7,3559.1,0.1498]
[1762797656602,0.001,3559.7,3558.5,1.261712]
[1762797656603,0.4548,3559.2,3558.5,0.002]
[1762797656761,0.4548,3559.2,3558.5,0.29299131]
[1762797657167,0.499,3559.1,3558.5,0.002]
[1762797657997,2.8098292,3559.0,3558.5,0.002]
[1762797658211,0.499,3559.1,3558.5,0.002]
[1762797660688,0.001,3559.7,3559.0,0.4814]
[1762797660885,0.001,3559.7,3559.6,0.4814]
[1762797661184,0.001,3559.7,3559.6,0.6312]
[1762797661625,0.4558,3559.7,3559.1,0.4921]
[1762797661787,0.001,3559.7,3559.2,0.1498]
[1762797662713,0.5,3559.7,3558.8,0.4921]
[1762797665016,0.5,3559.7,3558.5,0.4941]
[1762797665017,3.3092323,3559.7,3558.5,0.4941]
[1762797665216,0.5,3559.7,3558.5,0.4941]
[1762797665547,2.80962846,3559.2,3558.5,0.002]
[1762797665705,7.06629905,3559.2,3558.5,0.002]
[1762797665908,7.56529905,3559.2,3558.5,0.002]
[1762797666717,2.83788335,3559.1,3558.5,0.002]
[1762797666917,3.33688335,3559.1,3558.5,0.002]
[1762797667106,0.499,3559.1,3558.5,0.002]
[1762797667505,4.25667059,3559.3,3558.5,0.002]
[1762797668029,4.75567059,3559.3,3558.5,0.002]
[1762797668231,0.38627153,3559.7,3558.5,0.002]
[1762797668232,0.88527153,3559.7,3558.5,0.4941]
[1762797668429,3.30835091,3559.6,3558.5,0.4941]
[1762797668596,0.499,3559.6,3558.5,0.4941]
[1762797668794,0.001,3559.7,3558.5,0.4941]
[1762797669410,0.001,3559.7,3559.6,0.6312]
[1762797669909,0.001,3559.7,3559.6,0.4814]
[1762797670118,0.001,3559.7,3559.4,0.1498]
[1762797670495,0.001,3559.7,3559.6,0.4814]
[1762797670692,0.001,3559.7,3559.6,1.00159304]
[1762797670909,0.001,3559.7,3559.6,0.9735]
[1762797671699,0.001,3559.7,3559.6,1.00159304]
[1762797673399,0.001,3559.7,3559.6,2.11531339]
[1762797673598,0.001,3559.7,3559.6,1.38711048]
[1762797673806,0.001,3559.7,3559.6,0.41361048]
[1762797674027,0.001,3559.7,3559.6,0.4814]
[1762797674950,0.001,3559.7,3559.6,1.00159304]
[1762797675365,0.001,3559.7,3559.6,0.9735]
[1762797676054,0.001,3559.7,3559.6,2.13529995]
[1762797676213,0.001,3559.7,3559.6,3.39501195]
[1762797676414,0.001,3559.7,3559.6,2.56136779]
[1762797677641,0.001,3559.7,3559.6,3.11713833]
[1762797678247,0.001,3559.7,3559.6,2.38893542]
[1762797679216,0.001,3559.7,3559.6,2.78583781]
[1762797680323,0.001,3559.7,3559.6,2.38893542]
[1762797681680,0.001,3559.7,3559.6,1.98343142]
[1762797682343,0.001,3559.7,3559.6,0.93556088]
[1762797682581,0.001,3559.7,3559.6,1.42766088]
[1762797682781,0.001,3559.7,3559.6,0.9735]
[1762797683442,0.464,3560.6,3559.6,0.9735]
[1762797683674,0.464,3560.6,3559.8,0.0055]
[1762797684047,0.464,3560.6,3559.4,0.1498]
[1762797684285,3.27256744,3560.6,3559.4,0.1498]
[1762797684448,0.464,3560.6,3559.4,0.1498]
[1762797684644,2.80873481,3560.4,3559.4,0.24745241]
[1762797684951,2.80875402,3560.3,3559.2,0.1848]
[1762797685546,0.4735,3560.2,3559.2,0.1848]
[1762797686078,0.4735,3560.2,3559.2,0.6754]
[1762797686484,0.4735,3560.2,3559.2,0.1848]
[1762797687576,0.4735,3560.2,3559.3,14.5]
[1762797687904,0.4735,3560.2,3559.3,16.01754]
[1762797692701,0.461,3559.4,3559.3,14.5]
[1762797692920,4.06862327,3560.1,3559.3,14.5]
[1762797693108,0.1888,3559.8,3559.3,14.5]
[1762797693405,0.461,3559.4,3558.5,0.002]
[1762797693574,0.3058,3559.2,3558.5,0.80126]
[1762797693767,0.3058,3559.2,3558.6,14.5]
[1762797694398,0.4735,3559.1,3558.6,14.5]
[1762797695495,0.1888,3559.8,3558.5,0.002]
[1762797695496,0.001,3560.7,3559.0,0.484]
[1762797695683,0.001,3560.7,3559.4,0.484]
[1762797696090,0.001,3560.7,3559.5,15.1754]
[1762797696384,0.001,3560.7,3559.6,2.05654]
[1762797696711,0.4735,3560.6,3559.6,2.05654]
[1762797696910,0.4735,3560.6,3559.6,0.4906]
[1762797697118,0.4735,3560.6,3559.7,14.5]
[1762797698799,0.4735,3560.6,3559.8,0.02809146]
[1762797698988,0.001,3560.7,3560.2,0.0965]
[1762797699394,0.001,3560.7,3560.2,14.5965]
[1762797699586,0.001,3560.7,3560.2,16.09658]
[1762797699990,0.001,3560.7,3560.2,14.5]
[1762797700234,0.462,3560.3,3560.2,14.5]
[1762797700387,0.462,3560.3,3559.5,0.92630593]
[1762797700591,0.4735,3560.2,3559.4,0.74150593]
[1762797700792,0.4735,3560.2,3559.8,14.5]
[1762797701230,0.001,3560.3,3559.8,14.5]
[1762797702224,0.461,3559.9,3559.1,1.23210593]
[1762797702432,0.461,3559.9,3559.1,0.4906]
[1762797702650,0.461,3559.9,3559.0,0.83670593]
[1762797702651,0.1888,3559.8,3559.0,0.83670593]
[1762797702817,0.1888,3559.8,3559.2,14.5]
[1762797703019,0.6623,3559.8,3559.3,1.45952]
[1762797703310,0.6623,3559.8,3559.2,14.5]
[1762797703547,0.4735,3559.7,3559.2,14.5]
[1762797703838,0.461,3559.3,3558.5,0.002]
[1762797704026,0.4735,3559.7,3558.5,0.002]
[1762797704027,0.6426,3558.6,3558.5,0.002]
[1762797704412,1.1161,3558.6,3558.5,0.002]
[1762797706247,1.14427948,3558.6,3558.5,0.002]
[1762797706459,5.58133587,3558.6,3558.5,0.002]
[1762797708452,10.24351046,3558.6,3558.5,0.002]
[1762797709166,10.24351046,3558.6,3558.1,0.012]
[1762797709167,4.07012175,3558.2,3558.1,0.012]
[1762797709476,4.37642175,3558.2,3558.1,0.012]
[1762797709632,4.84992175,3558.2,3558.1,0.012]
[1762797709958,5.29660373,3558.2,3558.1,0.012]
[1762797710169,5.32478321,3558.2,3558.1,0.012]
[1762797712414,2.81072572,3557.8,3557.7,0.002]
[1762797712651,4.47625777,3557.4,3557.1,0.01]
[1762797712822,5.68126727,3557.4,3557.1,0.01]
[1762797713157,5.65308779,3557.4,3557.1,0.01]
[1762797713450,4.47641582,3557.2,3557.1,0.01]
[1762797713617,9.69276589,3557.2,3557.1,0.01]
[1762797713816,10.11126839,3557.2,3557.1,0.01]
[1762797715155,2.81175312,3556.5,3556.4,0.002]
[1762797715457,7.96480719,3556.5,3556.4,0.002]
[1762797715669,9.65923971,3556.5,3556.4,0.002]
[1762797717175,5.51523359,3556.5,3556.4,0.002]
[1762797717376,5.82617862,3556.5,3556.4,0.002]
[1762797717577,5.79799914,3556.5,3556.4,0.002]
[1762797719071,10.29565576,3556.5,3556.4,0.002]
[1762797720776,4.07170232,3556.2,3555.1,0.01]
[1762797720953,4.4107818,3556.2,3555.1,0.01]
[1762797721157,5.32036378,3556.2,3555.1,0.01]
[1762797722353,5.2921843,3556.2,3555.1,0.01]
[1762797723907,5.32036378,3556.2,3555.1,0.01]
[1762797724039,8.56943802,3556.1,3555.6,0.002]
[1762797724243,9.88896804,3556.1,3555.6,0.002]
[1762797724606,9.88896804,3556.1,3555.1,0.01]
[1762797724607,4.47799727,3555.2,3555.1,0.01]
[1762797724749,9.46353337,3555.2,3555.1,0.01]
[1762797725091,1.259712,3554.3,3553.5,0.4798]
[1762797725384,2.81349374,3554.3,3553.5,0.4798]
[1762797725600,1.259712,3554.4,3553.5,0.4798]
[1762797725601,4.07314788,3554.4,3553.5,0.4798]
[1762797725874,4.07305589,3554.5,3553.5,0.4798]
[1762797726175,2.81342304,3554.4,3553.5,0.4798]
[1762797726538,1.259712,3554.5,3553.5,0.4798]
[1762797727197,2.81354088,3554.3,3553.5,0.4798]
[1762797727414,2.81352581,3554.3,3553.5,0.4798]
[1762797727714,0.4798,3555.3,3554.2,0.9668]
[1762797727894,2.8127754,3555.3,3554.3,0.9668]
[1762797728093,0.4629,3555.6,3554.3,0.9668]
[1762797728295,7.30997074,3555.8,3554.4,0.4798]
[1762797728461,2.81259266,3555.5,3554.4,0.4798]
[1762797728664,1.80975371,3555.4,3554.4,0.4798]
[1762797728898,0.55004171,3555.4,3554.4,0.4798]
[1762797729501,0.02817948,3555.3,3554.4,0.4798]
[1762797729798,2.81284743,3555.2,3554.4,0.4798]
[1762797729965,1.259712,3555.0,3554.4,0.4798]
[1762797730167,2.81271921,3555.3,3554.1,0.1618]
[1762797730168,0.02817948,3554.9,3554.1,0.1618]
[1762797730394,2.81330618,3554.6,3554.1,0.1618]
[1762797730589,2.81330936,3554.6,3554.1,0.1618]
[1762797730797,2.841519,3554.5,3554.1,0.1618]
[1762797730988,2.84154327,3554.5,3554.1,0.1618]
[1762797731390,0.02817948,3554.5,3554.1,0.01]
[1762797731595,2.81357267,3554.2,3554.1,0.01]
[1762797731890,2.81352436,3554.3,3554.1,0.01]
[1762797732205,2.81343267,3554.4,3554.1,0.497]
[1762797732406,2.81346338,3554.4,3554.1,0.497]
[1762797732570,2.81350712,3554.3,3554.1,0.497]
[1762797732770,0.6518,3554.8,3554.1,0.497]
[1762797732771,0.1889,3554.8,3554.1,0.497]
[1762797732969,1.259712,3554.9,3554.1,0.497]
[1762797732970,1.259712,3554.3,3554.2,0.487]
[1762797733166,2.81349351,3554.3,3554.2,0.487]
[1762797733401,2.81334948,3554.5,3554.2,0.487]
[1762797733663,2.8134198,3554.4,3554.2,0.487]
[1762797734110,1.259712,3554.4,3554.2,0.487]
[1762797734276,1.259712,3554.4,3554.3,0.487]
[1762797734474,2.81254552,3555.5,3554.3,0.487]
[1762797734681,0.1889,3555.7,3554.8,0.487]
[1762797734921,1.259712,3555.2,3554.8,0.487]
[1762797735069,1.259712,3555.3,3554.8,0.5031]
[1762797735265,1.259712,3555.3,3555.1,0.0576]
[1762797735509,1.259712,3555.3,3555.1,0.2462]
[1762797735714,0.55004171,3555.4,3555.2,0.0019]
[1762797736010,0.4629,3556.4,3555.3,0.1715]
[1762797736183,1.259712,3556.0,3555.2,0.4798]
[1762797736589,1.259712,3556.2,3555.2,0.4798]
[1762797736791,1.259712,3555.7,3555.2,0.4798]
[1762797737112,2.81246654,3555.6,3555.1,0.1886]
[1762797737489,0.405504,3556.1,3555.5,0.487]
[1762797737677,2.81239554,3555.7,3555.5,0.487]
[1762797738010,1.722612,3556.2,3555.5,0.487]
[1762797738227,1.722612,3556.2,3555.6,0.0113]
[1762797738228,1.259712,3555.7,3555.6,0.0113]
[1762797738607,4.07196745,3555.9,3555.6,0.0113]
[1762797738790,1.23469065,3557.2,3555.7,0.4822]
[1762797738791,1.259712,3556.1,3555.7,0.4822]
[1762797738990,2.81201503,3556.2,3555.8,0.0158]
[1762797739214,2.81204192,3556.2,3556.1,0.1309]
[1762797739414,2.81199032,3556.2,3556.1,0.1309]
[1762797740600,4.49765662,3556.8,3556.1,0.1309]
[1762797740797,2.8115665,3556.8,3556.2,0.487]
[1762797741105,2.8115665,3556.8,3555.1,0.1886]
[1762797741106,0.02817948,3556.7,3555.6,0.4798]
[1762797741304,1.458612,3556.9,3555.6,0.4798]
[1762797741305,0.001,3555.7,3555.6,0.4798]
[1762797741692,0.001,3555.7,3555.6,0.9668]
[1762797745437,0.001,3555.7,3555.6,15.4668]
[1762797745751,0.001,3555.7,3555.6,17.01348]
[1762797748427,0.001,3555.7,3555.6,2.51348]
[1762797748617,0.001,3555.7,3555.6,0.9668]
[1762797749119,0.001,3555.7,3555.6,0.487]
[1762797749723,0.001,3555.7,3555.6,0.9526]
[1762797751092,0.001,3555.7,3555.6,0.487]
[1762797753055,0.001,3555.7,3555.6,0.9526]
[1762797754675,0.001,3556.1,3555.6,0.9526]
[1762797754676,0.001,3556.1,3555.6,1.358104]
[1762797754828,0.001,3556.1,3556.0,0.0226]
[1762797756369,0.001,3556.1,3555.5,0.4656]
[1762797756730,0.001,3556.1,3555.6,14.5]
[1762797756973,0.001,3556.1,3555.1,0.1886]
[1762797756974,2.81308155,3556.1,3555.1,0.1886]
[1762797757211,0.001,3556.1,3555.1,0.6542]
[1762797757379,0.001,3556.1,3555.1,0.1886]
[1762797757380,2.81228984,3555.9,3555.1,0.1886]
[1762797757699,2.81225951,3555.9,3555.1,0.1886]
[1762797758002,0.1972,3555.9,3555.1,0.1886]
[1762797758305,0.1972,3555.9,3554.8,14.5]
[1762797758602,2.81238574,3555.7,3554.5,0.4656]
[1762797758769,2.81246484,3555.6,3554.5,0.4656]
[1762797759100,2.81255136,3555.5,3554.6,14.5]
[1762797759304,2.81255136,3555.5,3554.7,1.49656]
[1762797759900,0.485,3555.8,3555.1,0.002]
[1762797759901,2.81269569,3555.4,3555.1,0.002]
[1762797760265,2.81260452,3555.5,3555.1,0.002]
[1762797761196,0.485,3555.8,3555.1,0.002]
[1762797761380,3.30968127,3555.2,3555.1,0.002]
[1762797761796,3.79468127,3555.2,3555.1,0.002]
[1762797764377,5.05439327,3555.2,3555.1,0.002]
[1762797765973,5.05439327,3555.2,3554.7,0.002]
[1762797765974,8.9759704,3554.8,3554.7,0.002]
[1762797766172,8.9759704,3554.8,3554.3,0.002]
[1762797766173,2.81341435,3554.4,3554.3,0.002]
[1762797766416,7.78907097,3554.4,3554.3,0.002]
[1762797766586,8.27407097,3554.4,3554.3,0.002]
[1762797767186,9.53378297,3554.4,3554.3,0.002]
[1762797768113,9.85158781,3554.4,3554.3,0.002]
[1762797768680,10.25709181,3554.4,3554.3,0.002]
[1762797768984,9.93928697,3554.4,3554.3,0.002]
[1762797770402,10.25709181,3554.4,3554.3,0.002]
[1762797771392,3.21907667,3554.2,3554.1,0.012]
[1762797771721,4.47910535,3553.8,3553.3,0.002]
[1762797771927,3.21971011,3553.4,3553.3,0.002]
[1762797772084,9.27555821,3553.4,3553.3,0.002]
[1762797772416,9.73237873,3553.4,3553.3,0.002]
[1762797773233,9.73237873,3553.4,3550.9,0.1518]
[1762797773234,3.21986851,3553.2,3550.9,0.1518]
[1762797773397,3.21986851,3553.2,3551.2,0.4656]
[1762797773398,4.3471688,3552.2,3551.2,0.4656]
[1762797774299,4.8032688,3552.2,3551.2,0.4656]
[1762797774608,4.83144828,3552.2,3550.9,0.6174]
[1762797774985,4.8032688,3552.2,3551.0,0.4566]
[1762797775195,4.8032688,3552.2,3550.9,0.6084]
[1762797775196,5.2087728,3552.2,3550.9,0.6084]
[1762797776456,3.22081931,3552.0,3550.9,0.1518]
[1762797776608,4.96203131,3552.0,3550.5,0.4566]
[1762797776811,4.96203131,3552.0,3550.3,0.002]
[1762797776812,2.81563239,3551.6,3550.3,0.002]
[1762797777123,4.07566153,3551.2,3550.3,0.002]
[1762797777335,9.05481815,3551.2,3550.3,0.002]
[1762797777535,9.92822215,3551.2,3550.3,0.002]
[1762797778046,4.07629604,3550.4,3550.3,0.002]
[1762797778213,4.07629604,3550.4,3549.5,0.002]
[1762797778214,2.81674271,3550.2,3549.5,0.002]
[1762797778410,4.99163819,3550.2,3549.5,0.002]
[1762797778647,5.8673048,3550.2,3549.5,0.002]
[1762797778846,5.83912532,3550.2,3549.5,0.002]
[1762797779007,2.8169014,3550.0,3549.5,0.002]
[1762797779213,4.48243484,3549.6,3549.5,0.002]
[1762797779434,9.24359089,3549.6,3549.5,0.002]
[1762797779669,9.71149089,3549.6,3549.5,0.002]
[1762797780548,1.66747861,3549.6,3549.5,0.002]
[1762797780752,0.183,3550.5,3549.5,0.9096]
[1762797780970,0.4679,3550.8,3549.5,0.9096]
[1762797780971,4.28125605,3550.8,3549.5,0.9096]
[1762797781118,4.28125605,3550.8,3549.6,0.4566]
[1762797781322,1.259712,3551.2,3549.6,0.4566]
[1762797781553,1.259712,3551.0,3549.6,0.4566]
[1762797781861,4.74915605,3551.3,3549.6,0.4566]
[1762797781862,0.4679,3551.2,3549.6,0.4566]